fUSD/lending_fUSD_20251231
["ID","MTS","AMOUNT","RATE_DAILY","PERIOD"]
[400229279,1767207040764,-7951.93615828,0.00013731,2]
[400229281,1767207040774,-21896.86626096,0.00013789,2]
[400229283,1767207040784,-1852.42,0.00013842,2]
[400229285,1767207040794,-1000.0,0.0001389,2]
[400229287,1767207040803,-500.0,0.00013989,2]
[400229289,1767207040813,-500.0,0.00013989,2]
[400229291,1767207040823,-500.0,0.00013989,2]
[400229293,1767207040833,-500.0,0.00013989,2]
[400229295,1767207040843,-191.93,0.00013997,2]
[400229297,1767207040853,-166.66,0.00014012,2]
[400229299,1767207040862,-166.66,0.00014023,2]
[400229301,1767207040872,-553.98270928,0.0001415,2]
[400229303,1767207040884,-3462.0,0.00014214,2]
[400229305,1767207040894,-1328.0,0.00014214,2]
[400229307,1767207040903,-613.0,0.00014214,2]
[400229309,1767207040914,-1403.0,0.00014214,2]
[400229311,1767207040924,-1199.0,0.00014214,2]
[400229313,1767207040934,-913.0,0.00014214,2]
[400229315,1767207040943,-1264.0,0.00014214,2]
[400229317,1767207040953,-200.0,0.00014214,2]
[400229319,1767207040964,-264.0,0.00014214,2]
[400229321,1767207040973,-565.0,0.00014214,2]
[400229323,1767207040982,-250.0,0.00014214,2]
[400229325,1767207040992,-194.067,0.00014214,2]
[400229327,1767207041001,-4812.0,0.00014214,2]
[400229329,1767207041011,-224.984,0.00014214,2]
[400229331,1767207041020,-2433.0,0.00014214,2]
[400229333,1767207041029,-250.0,0.00014214,2]
[400229335,1767207041039,-156.732,0.00014214,2]
[400229337,1767207041049,-166.66,0.00014295,2]
[400229339,1767207041058,-7951.93615828,0.00014365,2]
[400229341,1767207041069,-13676.7,0.00014382,2]
[400229343,1767207041078,-166.05,0.00014392,2]
[400229345,1767207041088,-21896.86626096,0.00014411,2]
[400229347,1767207041098,-166.66,0.00014444,2]
[400229349,1767207041107,-166.66,0.00014578,2]
[400229351,1767207041117,-250.0,0.00014628,2]
[400229353,1767207041127,-191.93,0.00014775,2]
[400229355,1767207041136,-736.0,0.0001479,2]
[400229357,1767207041146,-166.66,0.00014861,2]
[400229359,1767207041157,-166.66,0.00014865,2]
[400229361,1767207041167,-1586.0,0.00014901,2]
[400229363,1767207041177,-7951.93615828,0.00014999,2]
[400229366,1767207041187,-21896.86626096,0.00015033,2]
[400229368,1767207041196,-151.0,0.00015044,2]
[400229370,1767207041206,-151.0,0.00015044,2]
[400229372,1767207041215,-553.98270928,0.00015066,2]
[400229374,1767207041225,-151.0,0.00015071,2]
[400229376,1767207041234,-151.0,0.00015071,2]
[400229378,1767207041244,-151.0,0.00015079,2]
[400229380,1767207041253,-151.0,0.00015079,2]
[400229381,1767207041262,-151.0,0.00015135,2]
[400229382,1767207041272,-151.0,0.00015135,2]
[400229383,1767207041281,-150.00000001,0.00015288,2]
[400229384,1767207041291,-150.0,0.00015288,2]
[400229386,1767207041300,-150.0,0.00015288,2]
[400229388,1767207041309,-150.0,0.00015288,2]
[400229390,1767207041318,-150.0,0.00015288,2]
[400229392,1767207041327,-151.85727786,0.00015288,2]
[400229394,1767207041337,-150.0,0.00015288,2]
[400229397,1767207041347,-150.0,0.00015288,2]
[400229399,1767207041356,-150.00000001,0.00015288,2]
[400229401,1767207041366,-166.05,0.00015499,2]
[400229403,1767207041375,-191.93,0.00015552,2]
[400229405,1767207041385,-7951.93615828,0.00015632,2]
[400229407,1767207041394,-500.0,0.00015655,2]
[400229409,1767207041404,-500.0,0.00015655,2]
[400229411,1767207041414,-21896.86626096,0.00015656,2]
[400229413,1767207041423,-150.0,0.00015712,2]
[400229415,1767207041433,-151.83594907,0.0001583,2]
[400229417,1767207041442,-500.0,0.00015872,2]
[400229419,1767207041452,-500.0,0.00015872,2]
[400229421,1767207041462,-500.0,0.00015872,2]
[400229423,1767207041471,-500.0,0.00015973,2]
[400229425,1767207041481,-500.0,0.00015973,2]
[400229427,1767207041491,-500.0,0.00015973,2]
[400229429,1767207041500,-505.96387624,0.00015973,2]
[400229431,1767207041510,-503.03203871,0.00015973,2]
[400229433,1767207041519,-520.78153247,0.00015973,2]
[400229435,1767207041529,-500.0,0.00015973,2]
[400229437,1767207041539,-500.0,0.00015973,2]
[400229439,1767207041549,-505.70209618,0.00015973,2]
[400229441,1767207041559,-500.0,0.00015973,2]
[400229443,1767207041568,-500.0,0.00015973,2]
[400229445,1767207041578,-500.0,0.00015973,2]
[400229447,1767207041588,-500.0,0.00015973,2]
[400229449,1767207041597,-500.0,0.00015973,2]
[400229451,1767207041607,-500.0,0.00015973,2]
[400229453,1767207041617,-506.54564538,0.00015973,2]
[400229455,1767207041627,-500.0,0.00015973,2]
[400229457,1767207041636,-500.0,0.00015973,2]
[400229459,1767207041645,-586.65461405,0.00015973,2]
[400229461,1767207041655,-500.0,0.00015973,2]
[400229463,1767207041664,-500.0,0.00015973,2]
[400229465,1767207041674,-500.0,0.00015973,2]
[400229467,1767207041684,-500.0,0.00015973,2]
[400229469,1767207041694,-500.0,0.00015973,2]
[400229471,1767207041703,-500.0,0.00015973,2]
[400229473,1767207041712,-500.0,0.00015973,2]
[400229475,1767207041722,-500.0,0.00015973,2]
[400229477,1767207041732,-500.0,0.00015973,2]
[400229479,1767207041741,-500.0,0.00015973,2]
[400229481,1767207041751,-500.0,0.00015973,2]
[400229484,1767207041761,-461.09,0.00015973,2]
[400229486,1767207041771,-553.98270928,0.00015983,2]
[400229489,1767207041794,-4486.89,0.00016116,2]
[400229491,1767207041805,-150.0,0.00016137,2]
[400229493,1767207041815,-1187.0,0.0001618,2]
[400229495,1767207041825,-500.0,0.00016247,2]
[400229498,1767207041835,-461.09,0.00016247,2]
[400229500,1767207041845,-7951.93615828,0.00016266,2]
[400229502,1767207041855,-21896.86626096,0.00016278,2]
[400229504,1767207041864,-191.93,0.0001633,2]
[400229506,1767207041873,-6394.8,0.00016438,2]
[400229508,1767207041884,-14860.67,0.00016438,2]
[400229510,1767207041894,-164.68,0.0001644,2]
[400229512,1767207041904,-164.68,0.0001644,2]
[400229514,1767207041914,-164.68,0.0001644,2]
[400229516,1767207041925,-1118.01,0.00016465,2]
[400229518,1767207041934,-300.0,0.00016465,2]
[400229520,1767207041944,-178.62,0.00016465,2]
[400229522,1767207041956,-150.0,0.00016465,2]
[400229524,1767207041966,-151.83594907,0.00016489,2]
[400229526,1767207041976,-500.0,0.0001652,2]
[400229528,1767207041986,-728.12,0.00016521,2]
[400229530,1767207041996,-506.28021609,0.00016521,2]
[400229533,1767207042006,-1000.0,0.00016521,2]
[400229535,1767207042015,-753.27711762,0.00016521,2]
[400229537,1767207042025,-631.57207523,0.00016521,2]
[400229539,1767207042035,-1000.0,0.00016521,2]
[400229541,1767207042045,-346.17207991,0.00016521,2]
[400229543,1767207042055,-1000.0,0.00016521,2]
[400229545,1767207042064,-1000.0,0.00016521,2]
[400229547,1767207042074,-506.25100287,0.00016521,2]
[400229549,1767207042084,-1000.0,0.00016521,2]
[400229551,1767207042094,-1000.0,0.00016521,2]
[400229553,1767207042104,-1000.0,0.00016521,2]
[400229555,1767207042114,-1000.0,0.00016521,2]
[400229557,1767207042124,-1000.0,0.00016521,2]
[400229559,1767207042133,-506.70190178,0.00016521,2]
[400229562,1767207042149,-1000.0,0.00016521,2]
[400229564,1767207042159,-1000.0,0.00016521,2]
[400229566,1767207042169,-1000.0,0.00016521,2]
[400229568,1767207042179,-1000.0,0.00016521,2]
[400229570,1767207042189,-1000.0,0.00016521,2]
[400229572,1767207042199,-1000.0,0.00016521,2]
[400229574,1767207042210,-1000.0,0.00016521,2]
[400229576,1767207042220,-682.13783809,0.00016521,2]
[400229578,1767207042230,-461.09,0.00016521,2]
[400229580,1767207042241,-150.0,0.00016562,2]
[400229582,1767207042251,-166.05,0.00016606,2]
[400229585,1767207042262,-6394.8,0.00016712,2]
[400229587,1767207042272,-461.09,0.00016795,2]
[400229589,1767207042281,-2806.2753,0.0001683,2]
[400229591,1767207042291,-2806.2753,0.0001683,2]
[400229593,1767207042301,-2806.2753,0.0001683,2]
[400229595,1767207042311,-205.88,0.00016838,2]
[400229597,1767207042321,-2806.2753,0.0001685,2]
[400229599,1767207042337,-2806.2753,0.0001688,2]
[400229601,1767207042347,-164.68,0.0001689,2]
[400229603,1767207042357,-43273.09713837,0.00016899,2]
[400229606,1767207042368,-553.98270928,0.000169,2]
[400229608,1767207042378,-7197.6755,0.000169,2]
[400229610,1767207042388,-582.8861866,0.000169,2]
[400229612,1767207042397,-21896.86626096,0.000169,2]
[400229614,1767207042408,-150.0,0.000169,2]
[400229616,1767207042417,-3192.31729128,0.000169,2]
[400229618,1767207042427,-7951.93615828,0.000169,2]
[400229620,1767207042438,-3356.0,0.000169,2]
[400229622,1767207042448,-2806.2753,0.0001691,2]
[400229624,1767207042458,-2000.0,0.00016918,2]
[400229626,1767207042468,-2000.0,0.00016918,2]
[400229628,1767207042478,-2000.0,0.00016918,2]
[400229630,1767207042488,-283.0,0.00016926,2]
[400229632,1767207042498,-2000.0,0.0001693,2]
[400229634,1767207042508,-2000.0,0.0001693,2]
[400229637,1767207042523,-1368.052,0.0001693,2]
[400229639,1767207042533,-1000.0,0.0001693,2]
[400229641,1767207042543,-1000.0,0.0001693,2]
[400229643,1767207042553,-1000.0,0.0001693,2]
[400229645,1767207042563,-1000.0,0.0001693,2]
[400229647,1767207042573,-1000.0,0.0001693,2]
[400229649,1767207042583,-1000.0,0.0001693,2]
[400229651,1767207042593,-2806.27531,0.0001693,2]
[400229653,1767207042603,-1000.0,0.00016937,2]
[400229655,1767207042613,-150.0,0.00016973,2]
[400229657,1767207042623,-6394.8,0.00016986,2]
[400229659,1767207042633,-43480.28,0.00016986,2]
[400229661,1767207042642,-150.0,0.00016986,2]
[400229663,1767207042652,-169.7017878,0.00016986,2]
[400229665,1767207042662,-150.00000001,0.00016986,2]
[400229667,1767207042672,-215.64160197,0.0001699,2]
[400229669,1767207042681,-215.64160197,0.0001699,2]
[400229671,1767207042691,-164.68,0.0001699,2]
[400229673,1767207042701,-500.0,0.00016996,2]
[400229675,1767207042711,-38950.2381032,0.00016997,2]
[400229677,1767207042721,-1099.7524735,0.00016997,2]
[400229679,1767207042730,-79842.934479,0.00016997,2]
[400229681,1767207042739,-452.7786778,0.00016997,2]
[400229683,1767207042749,-26614.311493,0.00016997,2]
[400229685,1767207042759,-2546.483282,0.00016997,2]
[400229687,1767207042769,-7846.9850556,0.00016997,2]
[400229689,1767207042779,-3299.2574206,0.00016997,2]
[400229691,1767207042789,-300.0,0.00016999,2]
[400229694,1767207042798,-300.0,0.00016999,2]
[400229696,1767207042808,-300.0,0.00016999,2]
[400229698,1767207042818,-300.0,0.00016999,2]
[400229700,1767207042827,-300.0,0.00016999,2]
[400229702,1767207042837,-500.0,0.00016999,2]
[400229704,1767207042847,-500.0,0.00016999,2]
[400229706,1767207042857,-500.0,0.00016999,2]
[400229708,1767207042866,-394.25410514,0.00016999,2]
[400229710,1767207042876,-300.0,0.00016999,2]
[400229712,1767207042888,-300.0,0.00016999,2]
[400229714,1767207042899,-150.0,0.00016999,2]
[400229716,1767207042909,-1960321.97200567,0.00017,2]
[400229718,1767207042919,-1078551.62189644,0.00017,2]
[400229739,1767207043107,-506494.46146458,0.00017,2]
[400229741,1767207043120,-2697.45575132,0.00017,2]
[400229744,1767207043132,-1790.09687237,0.00017,2]
[400229746,1767207043143,-27659.82776326,0.00017,2]
[400229749,1767207043155,-959.79,0.00017,2]
[400229835,1767207044066,-3318.44912896,0.00014214,2]
[400229842,1767207044122,-1961.60107269,0.00014214,2]
[400229844,1767207044133,-298.50596504,0.00014214,2]
[400229847,1767207044145,-963.44383331,0.00014214,2]
[400229849,1767207044155,-151.0,0.00015185,2]
[400229851,1767207044166,-151.0,0.00015185,2]
[400229853,1767207044175,-19759.68397321,0.00017,2]
[400229855,1767207044187,-2536.9738466,0.00017,2]
[400229857,1767207044198,-371.36820323,0.00017,2]
[400229860,1767207044210,-997.91842106,0.00017,2]
[400229862,1767207044221,-437.72700421,0.00017,2]
[400229864,1767207044234,-274.543,0.00017,2]
[400229866,1767207044245,-800.197906,0.00017,2]
[400229868,1767207044256,-307.97656556,0.00017,2]
[400229871,1767207044267,-1397.18855336,0.00017,2]
[400229873,1767207044279,-365.46274104,0.00017,2]
[400230007,1767207045548,-168.93438109,0.00014114,2]
[400230009,1767207045559,-6268.09464779,0.00017,2]
[400230014,1767207045601,-2950.711,0.00017,2]
[400230021,1767207045655,-358.8,0.00017,2]
[400231317,1767207061480,500.0,0.00043226,120]
[400231318,1767207166070,808.97,0.00043226,120]
[400231319,1767207278732,800.0,0.00030137,120]
[400231321,1767207348232,160.0,0.00043227,30]
[400231322,1767207348300,160.0,0.00043227,30]
[400231323,1767207348372,300.7,0.00043227,30]
[400231324,1767207348455,160.0,0.00043227,30]
[400231325,1767207348527,160.0,0.00043227,30]
[400231326,1767207348648,160.0,0.00043227,30]
[400231327,1767207348692,160.0,0.00043227,30]
[400231328,1767207348752,160.0,0.00043227,30]
[400231329,1767207348831,160.0,0.00043227,30]
[400231330,1767207348906,160.0,0.00043227,30]
[400231331,1767207348984,160.0,0.00043227,30]
[400231332,1767207349056,160.0,0.00043227,30]
[400231333,1767207349125,160.0,0.00043227,30]
[400231334,1767207349210,160.0,0.00043227,30]
[400231335,1767207349284,206.3,0.00043227,30]
[400231336,1767207366272,500.0,0.00043227,120]
[400231337,1767207459945,221.304861,0.00043227,50]
[400231338,1767207460246,221.304861,0.00043227,50]
[400231339,1767207460537,221.304861,0.00043227,50]
[400231340,1767207460853,221.304861,0.00043227,50]
[400231341,1767207461114,221.304861,0.00043227,50]
[400231342,1767207461415,221.304861,0.00043227,50]
[400231343,1767207461712,221.304861,0.00043227,50]
[400231344,1767207461999,221.304861,0.00043227,50]
[400231345,1767207462313,221.304861,0.00043227,50]
[400231346,1767207462613,221.304861,0.00043227,50]
[400231347,1767207462898,221.304861,0.00043227,50]
[400231348,1767207463193,221.304861,0.00043227,50]
[400231349,1767207463481,221.304861,0.00043227,50]
[400231350,1767207463779,221.304861,0.00043227,50]
[400231351,1767207464084,221.304861,0.00043227,50]
[400231352,1767207464377,221.304861,0.00043227,50]
[400231353,1767207464684,221.304861,0.00043227,50]
[400231354,1767207464980,221.304861,0.00043227,50]
[400231355,1767207465272,221.304861,0.00043227,50]
[400231356,1767207465568,221.304861,0.00043227,50]
[400231357,1767207642693,951.88,7.096e-05,2]
[400231358,1767207642918,951.88,7.47e-05,2]
[400231359,1767207643130,951.88,7.843e-05,2]
[400231360,1767207643446,951.88,8.217e-05,2]
[400231361,1767207643592,951.88,8.59e-05,2]
[400231362,1767207643866,951.88,8.963e-05,2]
[400231363,1767207644078,951.88,9.337e-05,2]
[400231364,1767207644323,951.88,9.71e-05,2]
[400231365,1767207644625,951.88,0.00010084,2]
[400231366,1767207644827,951.88,0.00010457,2]
[400231367,1767207645048,481.21,0.00010831,2]
[400231368,1767207645074,470.67,0.00010831,2]
[400231370,1767207660827,500.0,0.00043216,120]
[400231371,1767207695301,-374.07498275,0.00010976,2]
[400231372,1767207697738,-231.21921311,0.00010976,2]
[400231373,1767207701272,-475.65378864,0.00010976,2]
[400231374,1767207702061,-1893.9680155,0.00010976,2]
[400231375,1767207702096,-152.674,0.00010976,2]
[400231377,1767207798005,816.18203128,0.00043216,120]
[400231379,1767207808775,4325.478,0.00011099,5]
[400231381,1767207930271,286.058665,0.00043216,50]
[400231382,1767207961789,500.0,0.00043216,120]
[400231549,1767208231777,-300.0,0.00011097,2]
[400231550,1767208231788,-94.45008645,0.00011097,2]
[400231551,1767208231800,-286.96095259,0.00011097,2]
[400231552,1767208231837,-818.58896096,0.00011097,2]
[400231553,1767208231847,-1951.81760279,0.00011098,2]
[400231554,1767208231859,-500.0,0.00011098,2]
[400231555,1767208231869,-256.15797344,0.00011098,2]
[400231556,1767208231881,-500.0,0.00011098,2]
[400231557,1767208231891,-425.64417323,0.00011098,2]
[400231558,1767208231903,-235.41487194,0.00011098,2]
[400231559,1767208231912,-500.23264625,0.00011098,2]
[400231560,1767208231922,-387.51068456,0.00011098,2]
[400231561,1767208231932,-230.22359054,0.00011098,2]
[400231562,1767208231942,-500.0,0.00011098,2]
[400231563,1767208231952,-500.0,0.00011098,2]
[400231564,1767208231962,-500.0,0.00011098,2]
[400231566,1767208231972,-500.0,0.00011098,2]
[400231568,1767208231981,-500.0,0.00011098,2]
[400231570,1767208231991,-500.0,0.00011098,2]
[400231572,1767208232001,-500.0,0.00011098,2]
[400231573,1767208232011,-500.0,0.00011098,2]
[400231574,1767208232020,-500.0,0.00011098,2]
[400231575,1767208232030,-500.0,0.00011098,2]
[400231577,1767208232039,-500.0,0.00011098,2]
[400231579,1767208232049,-500.0,0.00011098,2]
[400231581,1767208232059,-500.0,0.00011098,2]
[400231583,1767208232068,-500.0,0.00011098,2]
[400231585,1767208232078,-500.0,0.00011098,2]
[400231587,1767208232087,-500.0,0.00011098,2]
[400231589,1767208232097,-500.0,0.00011098,2]
[400231591,1767208232106,-262.3767591,0.00011098,2]
[400231593,1767208232115,-500.0,0.00011098,2]
[400231595,1767208232125,-500.0,0.00011098,2]
[400231597,1767208232135,-500.0,0.00011098,2]
[400231600,1767208232145,-150.0,0.00011098,2]
[400231602,1767208232155,-241.0,0.00011098,2]
[400231604,1767208232164,-194.76532129,0.00011099,2]
[400231606,1767208232174,-60223.20771634,0.00011099,2]
[400231608,1767208232187,-29273.58450414,0.00011099,2]
[400231753,1767208237689,-3173.51969044,0.00011099,2]
[400231754,1767208237701,-1005.92392872,0.00011099,2]
[400231755,1767208237714,-822.68449342,0.00011099,2]
[400231758,1767208237900,-192897.81986653,0.00011099,2]
[400231964,1767208239844,-265.1286,0.00011099,2]
[400231966,1767208239856,-1279.2779985,0.00011099,2]
[400231967,1767208239867,-9006.5371147,0.00011099,2]
[400231968,1767208239879,-424.34554978,0.00011099,2]
[400231969,1767208239890,-1723.07381486,0.00011099,2]
[400231970,1767208239907,-2448.07079042,0.00011099,2]
[400231971,1767208239918,-877.815,0.00011099,2]
[400231972,1767208239929,-4076.14109984,0.00011099,2]
[400231978,1767208240004,-692502.86983231,0.00011099,2]
[400231980,1767208240014,-250.0,0.00011099,2]
[400231982,1767208240024,-4379.37325221,0.00011099,2]
[400231985,1767208240034,-250.0,0.00011099,2]
[400231987,1767208240047,-387.24642354,0.000111,2]
[400231989,1767208240058,-2500.0,0.000111,2]
[400231991,1767208240068,-1590.38723171,0.000111,2]
[400231993,1767208240077,-43273.09713837,0.00011199,2]
[400231995,1767208240088,-181.76473655,0.000112,2]
[400231997,1767208240097,-150.99,0.000112,2]
[400231999,1767208240107,-299.99,0.000112,2]
[400232001,1767208240116,-25165.05,0.000112,2]
[400232003,1767208240125,-951.88,0.00011204,2]
[400232005,1767208240135,-1000.0,0.000113,2]
[400232007,1767208240145,-951.88,0.00011578,2]
[400232009,1767208240155,-4379.37325219,0.00011655,2]
[400232011,1767208240165,-500.0,0.00011655,2]
[400232013,1767208240174,-1590.38723165,0.00011744,2]
[400232016,1767208240184,-951.88,0.00011951,2]
[400232018,1767208240193,-255.0,0.00012152,2]
[400232020,1767208240202,-250.0,0.00012209,2]
[400232022,1767208240212,-4379.37325219,0.0001231,2]
[400232024,1767208240221,-951.88,0.00012325,2]
[400232026,1767208240230,-1590.38723165,0.00012389,2]
[400232028,1767208240240,-951.88,0.00012698,2]
[400232030,1767208240250,-4379.37325219,0.00012966,2]
[400232032,1767208240260,-1590.38723165,0.00013033,2]
[400232034,1767208240273,-951.88,0.00013072,2]
[400232036,1767208240282,-181.76473652,0.000131,2]
[400232038,1767208240292,-433.0,0.00013306,2]
[400232040,1767208240302,-951.88,0.00013445,2]
[400232042,1767208240313,-200.0,0.00013479,2]
[400232044,1767208240323,-1224.21,0.00013501,2]
[400232046,1767208240333,-4379.37325219,0.00013622,2]
[400232049,1767208240343,-1590.38723165,0.00013678,2]
[400232051,1767208240353,-500.0,0.00013698,2]
[400232053,1767208240363,-500.0,0.00013698,2]
[400232055,1767208240373,-500.0,0.00013698,2]
[400232057,1767208240383,-500.0,0.00013698,2]
[400232059,1767208240393,-1000.0,0.00013699,2]
[400232061,1767208240402,-245.20272775,0.00013699,2]
[400232063,1767208240411,-500.0,0.00013753,2]
[400232065,1767208240421,-951.88,0.00013819,2]
[400232068,1767208240444,-1600.0,0.00014001,2]
[400232070,1767208240454,-432.0,0.00014082,2]
[400232072,1767208240465,-1264.0,0.00014096,2]
[400232074,1767208240475,-913.0,0.00014096,2]
[400232076,1767208240485,-4812.0,0.00014096,2]
[400232078,1767208240495,-565.0,0.00014096,2]
[400232081,1767208240505,-2433.0,0.00014096,2]
[400232083,1767208240515,-1000.0,0.00014163,2]
[400232085,1767208240524,-951.88,0.00014192,2]
[400232087,1767208240534,-243.342,0.00014214,2]
[400232089,1767208240543,-150.0,0.00014214,2]
[400232091,1767208240553,-150.0,0.00014214,2]
[400232093,1767208240563,-151.0,0.00014214,2]
[400232095,1767208240572,-150.592,0.00014214,2]
[400232097,1767208240582,-1328.0,0.00014214,2]
[400232099,1767208240591,-613.0,0.00014214,2]
[400232101,1767208240601,-1403.0,0.00014214,2]
[400232103,1767208240611,-3462.0,0.00014214,2]
[400232105,1767208240621,-4379.37325219,0.00014277,2]
[400232107,1767208240631,-1590.38723165,0.00014322,2]
[400232110,1767208240642,-5695.26,0.00014395,2]
[400232112,1767208240651,-14471.52,0.00014507,2]
[400232114,1767208240661,-499.0,0.00014572,2]
[400232116,1767208240671,-250.0,0.00014664,2]
[400232118,1767208240681,-3349.0,0.00014892,2]
[400232120,1767208240691,-4379.37325219,0.00014933,2]
[400232122,1767208240700,-1590.38723165,0.00014967,2]
[400232124,1767208240710,-181.76473652,0.00015,2]
[400232126,1767208240719,-428.03,0.00015068,2]
[400232128,1767208240730,-150.0,0.00015288,2]
[400232130,1767208240740,-150.0,0.00015288,2]
[400232132,1767208240749,-150.0,0.00015288,2]
[400232134,1767208240759,-150.00000001,0.00015288,2]
[400232136,1767208240769,-500.0,0.00015315,2]
[400232138,1767208240779,-502.0,0.00015397,2]
[400232141,1767208240794,-831.0,0.000154,2]
[400232143,1767208240805,-4379.37325219,0.00015589,2]
[400232145,1767208240816,-1590.38723165,0.00015611,2]
[400232147,1767208240826,-357.36,0.00015643,2]
[400232149,1767208240836,-465.64,0.00015643,2]
[400232151,1767208240845,-465.64,0.00015643,2]
[400232153,1767208240855,-178.74,0.00015643,2]
[400232156,1767208240867,-465.64,0.00015643,2]
[400232158,1767208240877,-465.64,0.00015643,2]
[400232160,1767208240887,-178.74,0.00015643,2]
[400232162,1767208240897,-465.64,0.00015643,2]
[400232164,1767208240907,-465.64,0.00015643,2]
[400232166,1767208240917,-178.74,0.00015643,2]
[400232168,1767208240926,-465.64,0.00015643,2]
[400232170,1767208240936,-1600.0,0.00015752,2]
[400232172,1767208240947,-577.66,0.00015772,2]
[400232174,1767208240956,-151.83594907,0.00015799,2]
[400232176,1767208240966,-1000.0,0.000158,2]
[400232178,1767208240976,-215.64160198,0.00015924,2]
[400232181,1767208240987,-1000.0,0.00015934,2]
[400232183,1767208240998,-631.57207523,0.00015973,2]
[400232185,1767208241007,-500.0,0.00015973,2]
[400232187,1767208241017,-500.0,0.00015973,2]
[400232189,1767208241027,-500.0,0.00015973,2]
[400232191,1767208241036,-500.0,0.00015973,2]
[400232193,1767208241046,-500.0,0.00015973,2]
[400232195,1767208241055,-346.17207991,0.00015973,2]
[400232197,1767208241065,-500.0,0.00015973,2]
[400232199,1767208241075,-500.0,0.00015973,2]
[400232201,1767208241084,-500.0,0.00015973,2]
[400232203,1767208241094,-500.0,0.00015973,2]
[400232206,1767208241104,-500.0,0.00015973,2]
[400232208,1767208241114,-500.0,0.00015973,2]
[400232210,1767208241125,-506.70190178,0.00015973,2]
[400232212,1767208241134,-500.0,0.00015973,2]
[400232214,1767208241148,-500.0,0.00015973,2]
[400232217,1767208241161,-500.0,0.00015973,2]
[400232219,1767208241171,-500.0,0.00015973,2]
[400232221,1767208241180,-500.0,0.00015973,2]
[400232223,1767208241191,-506.28021609,0.00015973,2]
[400232225,1767208241201,-500.0,0.00015973,2]
[400232227,1767208241211,-506.25100287,0.00015973,2]
[400232229,1767208241222,-500.0,0.00015973,2]
[400232231,1767208241232,-500.0,0.00015973,2]
[400232233,1767208241242,-368.88,0.00015973,2]
[400232235,1767208241252,-150.0,0.00016,2]
[400232237,1767208241267,-831.0,0.0001604,2]
[400232239,1767208241278,-1000.0,0.000161,2]
[400232241,1767208241289,-150.0,0.00016137,2]
[400232243,1767208241300,-4379.37325219,0.00016244,2]
[400232245,1767208241311,-368.88,0.00016247,2]
[400232247,1767208241321,-1590.38723165,0.00016256,2]
[400232249,1767208241332,-178.74,0.00016278,2]
[400232251,1767208241343,-383.3,0.00016278,2]
[400232253,1767208241353,-465.64,0.00016278,2]
[400232255,1767208241363,-660.35,0.00016328,2]
[400232257,1767208241372,-660.35,0.00016328,2]
[400232259,1767208241382,-660.35,0.00016328,2]
[400232261,1767208241392,-660.35,0.00016328,2]
[400232263,1767208241402,-6228.2,0.00016438,2]
[400232265,1767208241412,-500.0,0.00016438,2]
[400232267,1767208241422,-500.0,0.00016438,2]
[400232269,1767208241432,-500.0,0.00016438,2]
[400232271,1767208241442,-500.0,0.00016438,2]
[400232273,1767208241451,-551.10163238,0.00016438,2]
[400232276,1767208241461,-500.0,0.00016438,2]
[400232278,1767208241471,-500.0,0.00016438,2]
[400232280,1767208241480,-500.0,0.00016438,2]